bitfinex-derivatives/quotes_BTCF0:USTF0_20250424
["timestamp","ask_amount","ask_price","bid_price","bid_amount"]
[1745520278381,0.1779,93381.0,93380.0,0.1080545]
[1745520278988,0.1779,93381.0,93380.0,0.001]
[1745520280990,0.1779,93381.0,93378.0,0.1070571]
[1745520281177,0.1789,93380.0,93378.0,0.1070571]
[1745520281690,0.1789,93380.0,93377.0,0.0535288]
[1745520281988,0.1801,93379.0,93378.0,0.1070573]
[1745520282188,0.1801,93379.0,93375.0,0.3608]
[1745520282385,0.178,93378.0,93375.0,0.3608]
[1745520282585,0.178,93378.0,93369.0,0.1844]
[1745520282786,0.1801,93377.0,93370.0,0.107066]
[1745520282987,0.1801,93377.0,93369.0,0.1844]
[1745520282988,0.1801,93377.0,93369.0,0.2379337]
[1745520283188,0.178,93376.0,93372.0,0.1070633]
[1745520283589,0.1801,93375.0,93372.0,0.2914633]
[1745520284289,0.178,93374.0,93373.0,0.107063]
[1745520284494,0.178,93374.0,93373.0,0.297963]
[1745520285383,0.178,93374.0,93373.0,0.298963]
[1745520286681,0.178,93374.0,93373.0,0.299963]
[1745520289082,0.1801,93375.0,93374.0,0.1070619]
[1745520289284,0.1801,93375.0,93374.0,0.4661619]
[1745520290089,0.1801,93375.0,93374.0,0.4671619]
[1745520290983,0.1801,93375.0,93374.0,0.4681619]
[1745520294287,0.1849,93382.0,93374.0,0.3611]
[1745520294486,0.1841,93380.0,93379.0,0.1070561]
[1745520294796,0.1841,93380.0,93379.0,0.4838561]
[1745520295088,0.1883,93390.0,93389.0,0.1070447]
[1745520295298,0.3724,93390.0,93389.0,0.1070447]
[1745520296190,0.3724,93390.0,93389.0,0.2914447]
[1745520296494,0.07124,93395.0,93394.0,0.1070389]
[1745520296997,0.07124,93395.0,93394.0,0.1040389]
[1745520297188,0.07124,93395.0,93394.0,0.1010389]
[1745520297389,0.196,93399.0,93394.0,0.1070388]
[1745520297591,0.3768,93398.0,93394.0,0.1070388]
[1745520297886,0.3768,93398.0,93394.0,0.1090388]
[1745520298099,0.001,93395.0,93394.0,0.1110388]
[1745520299501,0.196,93397.0,93395.0,0.1070375]
[1745520300093,0.1888,93396.0,93395.0,0.1070375]
[1745520300296,0.07124,93419.0,93395.0,0.3608]
[1745520300501,0.1699,93411.0,93410.0,0.1070206]
[1745520300795,0.17795056,93411.0,93410.0,0.4678206]
[1745520301190,0.17795056,93411.0,93410.0,0.6446206]
[1745520302295,0.17795056,93411.0,93410.0,0.8166206]
[1745520302698,0.17895056,93411.0,93410.0,0.8166206]
[1745520302998,0.17895056,93411.0,93410.0,0.8186206]
[1745520303500,0.17795056,93411.0,93410.0,0.8196206]
[1745520304899,0.17795056,93411.0,93410.0,0.4588206]
[1745520307490,0.00805056,93411.0,93410.0,0.4588206]
[1745520307688,0.1738,93415.0,93410.0,0.3518]
[1745520307888,0.177,93414.0,93411.0,0.1683]
[1745520308092,0.177,93414.0,93411.0,0.1070187]
[1745520308296,0.1738,93413.0,93411.0,0.1070187]
[1745520308496,0.1738,93413.0,93411.0,0.2753187]
[1745520308688,0.177,93412.0,93411.0,0.2753187]
[1745520309088,0.177,93412.0,93411.0,0.4473187]
[1745520309898,0.177,93412.0,93411.0,0.172]
[1745520311088,0.177,93412.0,93411.0,0.2790195]
[1745520314289,0.177,93412.0,93411.0,0.172]
[1745520314796,0.5378,93412.0,93411.0,0.172]
[1745520315191,0.5378,93412.0,93400.0,0.1070316]
[1745520315398,0.1753,93411.0,93401.0,0.1070302]
[1745520315592,0.1753,93411.0,93397.0,0.177]
[1745520315897,0.1725,93410.0,93409.0,0.1070217]
[1745520316093,0.1725,93410.0,93404.0,0.0535137]
[1745520316289,0.1753,93409.0,93408.0,0.2840229]
[1745520317296,0.1753,93409.0,93408.0,0.4560229]
[1745520317898,0.1753,93409.0,93408.0,0.4570229]
[1745520319201,0.1753,93409.0,93408.0,0.4580229]
[1745520326106,0.1753,93409.0,93408.0,0.351]
[1745520326306,0.1753,93409.0,93408.0,0.4580229]
[1745520327707,0.1753,93409.0,93408.0,0.174]
[1745520327913,0.5361,93409.0,93408.0,0.174]
[1745520328209,0.5361,93409.0,93408.0,0.002]
[1745520335699,0.1753,93409.0,93408.0,0.002]
[1745520336213,0.3376,93409.0,93408.0,0.174]
[1745520338301,0.3376,93409.0,93408.0,0.002]
[1745520340307,0.3376,93409.0,93401.0,0.00029]
[1745520340613,0.3608,93402.0,93387.0,0.3608]
[1745520340803,0.55856,93401.0,93387.0,0.3608]
[1745520341200,0.55856,93401.0,93387.0,0.5328]
[1745520342212,0.55856,93401.0,93387.0,0.3638]
[1745520343004,0.55856,93401.0,93387.0,0.003]
[1745520343209,0.3608,93396.0,93387.0,0.003]
[1745520343408,0.3209,93395.0,93387.0,0.003]
[1745520343612,0.3209,93395.0,93388.0,0.1070455]
[1745520343813,0.3209,93395.0,93387.0,0.006]
[1745520344111,0.3209,93395.0,93394.0,0.1070389]
[1745520344701,0.3219,93395.0,93392.0,0.4332408]
[1745520345108,0.3219,93395.0,93394.0,0.003]
[1745520345303,0.3219,93395.0,93394.0,0.007]
[1745520345806,0.3219,93395.0,93394.0,0.004]
[1745520346203,0.3219,93395.0,93394.0,0.176]
[1745520346902,0.3209,93395.0,93394.0,0.172]
[1745520347307,0.3219,93395.0,93394.0,0.172]
[1745520347707,0.3219,93395.0,93394.0,0.176]
[1745520347906,0.3219,93395.0,93394.0,0.18]
[1745520349113,0.3219,93395.0,93394.0,0.008]
[1745520350111,0.428972,93395.0,93369.0,0.0535338]
[1745520350415,0.3608,93385.0,93377.0,0.0535288]
[1745520350715,0.57572,93384.0,93378.0,0.5066]
[1745520351021,0.57572,93384.0,93379.0,0.0535278]
[1745520351308,0.57572,93384.0,93380.0,0.0535275]
[1745520351508,0.57572,93384.0,93381.0,0.3361]
[1745520352112,0.57572,93384.0,93381.0,0.5081]
[1745520352311,0.57572,93384.0,93381.0,0.6151536]
[1745520352515,0.40732,93384.0,93381.0,0.5081]
[1745520352717,0.40732,93384.0,93383.0,0.1070516]
[1745520352915,0.40732,93384.0,93381.0,0.615153]
[1745520353115,0.57942,93384.0,93383.0,0.172]
[1745520353810,0.58042,93384.0,93383.0,0.172]
[1745520354209,0.58042,93384.0,93383.0,0.174]
[1745520355215,0.58042,93384.0,93383.0,0.178]
[1745520357111,0.58042,93384.0,93383.0,0.006]
[1745520361314,0.5093,93384.0,93383.0,0.006]
[1745520361626,0.40832,93384.0,93383.0,0.006]
[1745520362108,0.40832,93384.0,93383.0,0.178]
[1745520362415,0.24162,93384.0,93383.0,0.507]
[1745520362622,0.24162,93384.0,93383.0,0.6140516]
[1745520362819,0.07212,93384.0,93383.0,0.6140516]
[1745520363417,0.24502,93384.0,93383.0,0.507]
[1745520364924,0.40612,93384.0,93383.0,0.507]
[1745520366315,0.40612,93384.0,93383.0,0.178]
[1745520366523,0.57792,93384.0,93383.0,0.178]
[1745520367112,0.57792,93384.0,93383.0,0.006]
[1745520370320,0.74992,93384.0,93383.0,0.006]
[1745520371112,0.74992,93384.0,93383.0,0.00211603]
[1745520373223,0.57792,93384.0,93383.0,0.00211603]
[1745520374219,0.74992,93384.0,93383.0,0.00211603]
[1745520379126,0.57792,93384.0,93383.0,0.00211603]
[1745520382231,0.57788,93384.0,93383.0,0.00211603]
[1745520382530,0.335,93384.0,93383.0,0.00211603]
[1745520382730,0.001,93384.0,93383.0,0.10916763]
[1745520382927,0.3608,93410.0,93393.0,0.1070401]
[1745520382928,0.07108,93394.0,93393.0,0.1070401]
[1745520383230,0.07108,93396.0,93395.0,0.1070378]
[1745520383429,0.07108,93401.0,93400.0,0.1070311]
[1745520383622,0.3608,93408.0,93399.0,0.334]
[1745520383824,0.07108,93404.0,93403.0,0.1070286]
[1745520384722,0.07108,93404.0,93402.0,0.169]
[1745520384922,0.07108,93404.0,93403.0,0.3251]
[1745520385531,0.07108,93404.0,93403.0,0.4874]
[1745520387636,0.07108,93404.0,93403.0,0.5944286]
[1745520389427,0.07108,93404.0,93403.0,0.4874]
[1745520389630,0.1607,93407.0,93403.0,0.3273]
[1745520389837,0.23638,93406.0,93403.0,0.3273]
[1745520390229,0.1612,93405.0,93403.0,0.3273]
[1745520391532,0.1622,93405.0,93403.0,0.3273]
[1745520392837,0.1632,93405.0,93403.0,0.3273]
[1745520396445,0.002,93405.0,93404.0,0.1070275]
[1745520396631,0.002,93405.0,93404.0,0.3397]
[1745520396830,0.1698,93405.0,93404.0,0.3397]
[1745520397134,0.3429,93405.0,93404.0,0.3397]
[1745520397628,0.3419,93405.0,93404.0,0.3397]
[1745520397832,0.3429,93405.0,93404.0,0.3397]
[1745520398035,0.3429,93405.0,93404.0,0.4467275]
[1745520398237,0.3429,93405.0,93404.0,0.3397]
[1745520398543,0.3429,93405.0,93404.0,0.4467275]
[1745520399044,0.3429,93405.0,93404.0,0.3397]
[1745520399748,0.1698,93405.0,93404.0,0.4467275]
[1745520400336,0.1698,93405.0,93404.0,0.3397]
[1745520401939,0.1698,93405.0,93404.0,0.4467275]
[1745520402641,0.1698,93405.0,93404.0,0.3397]
[1745520403040,0.1698,93405.0,93404.0,0.1675]
[1745520403246,0.1698,93405.0,93399.0,0.1728]
[1745520403443,0.3282,93404.0,93400.0,0.1593]
[1745520403644,0.3282,93404.0,93402.0,0.1070298]
[1745520403838,0.3282,93404.0,93403.0,0.1593]
[1745520404942,0.3282,93404.0,93403.0,0.2663286]
[1745520405134,0.1651,93404.0,93403.0,0.2663286]
[1745520405543,0.002,93405.0,93404.0,0.1070275]
[1745520405749,0.002,93405.0,93404.0,0.2710275]
[1745520406249,0.001,93405.0,93404.0,0.2710275]
[1745520406447,0.07108,93407.0,93406.0,0.1070252]
[1745520407148,0.07108,93407.0,93406.0,0.1050252]
[1745520407549,0.16,93413.0,93406.0,0.0535125]
[1745520407845,0.16,93413.0,93407.0,0.1731]
[1745520408049,0.16,93413.0,93407.0,0.1721]
[1745520408250,0.3608,93410.0,93407.0,0.1721]
[1745520408441,0.1623,93409.0,93407.0,0.1721]
[1745520408636,0.1623,93409.0,93402.0,0.1652]
[1745520408844,0.1623,93409.0,93401.0,0.1070306]
[1745520409147,0.1623,93409.0,93407.0,0.001]
[1745520409645,0.1623,93409.0,93399.0,0.3608]
[1745520409846,0.1633,93409.0,93406.0,0.107025]
[1745520410242,0.1633,93409.0,93407.0,0.001]
[1745520410548,0.1643,93409.0,93407.0,0.001]
[1745520410852,0.1633,93409.0,93407.0,0.1080237]
[1745520411045,0.1643,93409.0,93407.0,0.1080237]
[1745520411852,0.1643,93409.0,93408.0,0.1070229]
[1745520412150,0.002,93409.0,93408.0,0.2758229]
[1745520412346,0.002,93409.0,93408.0,0.6178229]
[1745520415951,0.002,93409.0,93408.0,0.7248789]
[1745520416249,0.3289,93427.0,93414.0,0.0535074]
[1745520416250,0.3999,93427.0,93414.0,0.0535074]
[1745520416454,0.3999,93427.0,93426.0,0.1070023]
[1745520417345,0.3999,93427.0,93426.0,0.4450023]
[1745520417854,0.02719015,93427.0,93426.0,0.4450023]
[1745520418154,0.1651,93428.0,93427.0,0.1070011]
[1745520418339,0.1651,93428.0,93427.0,0.4450011]
[1745520418749,0.1651,93428.0,93427.0,0.4400011]
[1745520419352,0.1681,93428.0,93427.0,0.4410011]
[1745520419546,0.18688869,93428.0,93427.0,0.4360011]
[1745520420253,0.18988869,93428.0,93427.0,0.4360011]
[1745520422160,0.19800732,93428.0,93427.0,0.4360011]
[1745520425053,0.19800732,93428.0,93427.0,0.339]
[1745520425253,0.19800732,93428.0,93427.0,0.001]
[1745520425750,0.19800732,93428.0,93427.0,0.1080011]
[1745520427152,0.19800732,93428.0,93427.0,0.001]
[1745520427356,0.19800732,93428.0,93427.0,0.1080011]
[1745520429455,0.19800732,93428.0,93427.0,0.001]
[1745520431679,0.19800732,93428.0,93427.0,0.1080011]
[1745520432178,0.19800732,93428.0,93427.0,0.001]
[1745520432782,0.19800732,93428.0,93427.0,0.1080011]
[1745520435876,0.19800732,93428.0,93427.0,0.4288011]
[1745520436271,0.1643,93439.0,93438.0,0.1069885]
[1745520436474,0.3253,93439.0,93438.0,0.1069885]
[1745520436669,0.34462152,93439.0,93438.0,0.1069885]
[1745520437280,0.18032152,93439.0,93436.0,0.1598]
[1745520437587,0.1685,93438.0,93437.0,0.2656888]
[1745520438380,0.17649565,93438.0,93437.0,0.2656888]
[1745520438584,0.17949565,93438.0,93437.0,0.2656888]
[1745520438773,0.17949565,93438.0,93437.0,0.1069888]
[1745520440486,0.3608,93463.0,93437.0,0.717824]
[1745520440783,0.33958883,93463.0,93462.0,0.1069611]
[1745520441176,0.18058883,93463.0,93462.0,0.1069611]
[1745520441883,0.18058883,93463.0,93462.0,0.2635611]
[1745520442384,0.3608,93483.0,93474.0,0.1069473]
[1745520442579,0.1664,93476.0,93474.0,0.1059473]
[1745520443276,0.11705343,93475.0,93474.0,0.1059473]
[1745520443679,0.27635343,93475.0,93474.0,0.1059473]
[1745520445070,0.17834888,93475.0,93474.0,0.1059473]
[1745520445682,0.18623439,93475.0,93474.0,0.1059473]
[1745520449177,0.18623439,93475.0,93474.0,0.1069473]
[1745520451186,0.18623439,93475.0,93474.0,0.4332473]
[1745520451373,0.18623439,93475.0,93474.0,0.2695473]
[1745520452684,0.18623439,93475.0,93474.0,0.1069473]
[1745520455590,0.18623439,93475.0,93474.0,0.2719473]
[1745520459788,0.3608,93490.0,93476.0,0.106945]
[1745520459993,0.3154,93506.0,93499.0,0.1066387]
[1745520460188,0.3154,93506.0,93505.0,0.1069119]
[1745520460396,0.3608,93539.0,93505.0,0.3608]
[1745520460693,0.3608,93539.0,93529.0,0.3608]
[1745520460996,0.07088,93536.0,93529.0,0.3608]
[1745520461289,0.34979601,93536.0,93529.0,0.3608]
[1745520461494,0.10691601,93535.0,93529.0,0.3608]
[1745520461897,0.10691601,93534.0,93529.0,0.3608]
[1745520462091,0.07088,93533.0,93529.0,0.3608]
[1745520462587,0.10691601,93532.0,93529.0,0.3608]
[1745520462994,0.10691601,93531.0,93529.0,0.3608]
[1745520463186,0.1673,93531.0,93529.0,0.3608]
[1745520463387,0.10691601,93530.0,93529.0,0.3608]
[1745520463587,0.43551601,93530.0,93529.0,0.3608]
[1745520464098,0.60751601,93530.0,93529.0,0.3608]
[1745520464682,0.61051601,93530.0,93529.0,0.3608]
[1745520466192,0.5036,93530.0,93529.0,0.3608]
[1745520467195,0.5076,93530.0,93529.0,0.3608]
[1745520467990,0.57848,93530.0,93529.0,0.3608]
[1745520468187,0.5076,93530.0,93529.0,0.3608]
[1745520468390,0.57848,93530.0,93529.0,0.3608]
[1745520469193,0.02840502,93537.0,93529.0,0.3608]
[1745520469194,0.02840502,93537.0,93533.0,0.0534398]
[1745520469492,0.1595,93553.0,93536.0,0.3568]
[1745520469692,0.1595,93543.0,93542.0,0.1068696]
[1745520469894,0.1595,93543.0,93542.0,0.8284696]
[1745520470398,0.1549,93552.0,93551.0,0.1068593]
[1745520470598,0.08989564,93553.0,93552.0,0.1068582]
[1745520470794,0.09773052,93553.0,93552.0,0.1048582]
[1745520470993,0.09773052,93553.0,93552.0,0.2692582]
[1745520471195,0.02685052,93553.0,93552.0,0.2692582]
[1745520471395,0.1599,93564.0,93563.0,0.1068456]
[1745520471600,0.18355937,93564.0,93563.0,0.4676456]
[1745520472496,0.19171448,93564.0,93563.0,0.4676456]
[1745520472697,0.19171448,93564.0,93563.0,0.6404456]
[1745520473697,0.19171448,93564.0,93563.0,0.6394456]
[1745520474097,0.19171448,93564.0,93563.0,0.6404456]
[1745520474298,0.03181448,93564.0,93563.0,0.6404456]
[1745520474496,0.1683,93565.0,93563.0,0.5346]
[1745520474802,0.17637586,93565.0,93563.0,0.3648]
[1745520475003,0.1639,93564.0,93563.0,0.3648]
[1745520475502,0.1639,93564.0,93563.0,0.3628]
[1745520476294,0.1639,93564.0,93563.0,0.3648]
[1745520476803,0.18846917,93564.0,93563.0,0.3648]
[1745520477104,0.18846917,93564.0,93486.0,0.5346681]
[1745520477105,0.29534917,93564.0,93544.0,0.10847055]
[1745520477294,0.1563,93563.0,93545.0,0.1673]
[1745520477489,0.1563,93563.0,93545.0,0.2741658]
[1745520477694,0.1684,93562.0,93545.0,0.2741658]
[1745520478103,0.1563,93561.0,93551.0,0.3628]
[1745520478704,0.1684,93560.0,93551.0,0.3648]
[1745520479303,0.1585,93559.0,93553.0,0.3608]
[1745520479707,0.1666,93558.0,93553.0,0.3608]
[1745520480305,0.1585,93557.0,93553.0,0.3608]
[1745520480705,0.1666,93556.0,93553.0,0.3608]
[1745520481205,0.1585,93555.0,93553.0,0.3628]
[1745520481408,0.1585,93555.0,93554.0,0.1698]
[1745520483203,0.1585,93555.0,93554.0,0.1728]
[1745520484103,0.1585,93555.0,93554.0,0.1758]
[1745520484606,0.1585,93555.0,93554.0,0.3417]
[1745520485201,0.0708,93561.0,93560.0,0.106849]
[1745520485796,0.0708,93561.0,93560.0,0.423349]
[1745520486701,0.0708,93561.0,93560.0,0.425349]
[1745520486904,0.0708,93561.0,93560.0,0.426349]
[1745520487301,0.0708,93561.0,93560.0,0.003]
[1745520488496,0.1587,93562.0,93560.0,0.003]
[1745520488697,0.1587,93562.0,93561.0,0.3608]
[1745520489003,0.2295,93562.0,93560.0,0.003]
[1745520489598,0.2295,93562.0,93560.0,0.002]
[1745520489802,0.2295,93562.0,93561.0,0.002]
[1745520490403,0.33638,93562.0,93535.0,0.0534384]
[1745520490608,0.33638,93562.0,93529.0,0.3608]
[1745520490609,0.3608,93555.0,93545.0,0.1617]
[1745520490806,0.1615,93554.0,93545.0,0.1617]
[1745520491712,0.1615,93554.0,93530.0,0.0534415]
[1745520491903,0.1615,93554.0,93537.0,0.3351]
[1745520492300,0.1615,93554.0,93545.0,0.003]
[1745520492502,0.1576,93553.0,93545.0,0.003]
[1745520492906,0.3333,93552.0,93545.0,0.003]
[1745520493211,0.3333,93552.0,93544.0,0.1696]
[1745520493512,0.1576,93551.0,93544.0,0.1706]
[1745520493908,0.1659,93550.0,93544.0,0.1696]
[1745520494103,0.1659,93550.0,93545.0,0.003]
[1745520494304,0.1576,93549.0,93545.0,0.003]
[1745520494607,0.0708,93548.0,93545.0,0.003]
[1745520494808,0.2348,93548.0,93545.0,0.003]
[1745520495007,0.161,93547.0,93545.0,0.003]
[1745520495409,0.164,93546.0,93545.0,0.003]
[1745520495999,0.164,93546.0,93545.0,0.004]
[1745520496809,0.164,93546.0,93545.0,0.008]
[1745520497008,0.325,93546.0,93545.0,0.008]
[1745520497209,0.325,93546.0,93545.0,0.004]
[1745520497400,0.325,93546.0,93545.0,0.005]
[1745520497713,0.325,93546.0,93545.0,0.01]
[1745520498098,0.4319,93546.0,93529.0,0.3508]
[1745520498305,0.325,93546.0,93530.0,0.17]
[1745520498707,0.325,93546.0,93531.0,0.1555]
[1745520499507,0.325,93546.0,93531.0,0.1421238]
[1745520500613,0.325,93546.0,93531.0,0.1451238]
[1745520501200,0.325,93546.0,93531.0,0.1481238]
[1745520501405,0.3608,93539.0,93531.0,0.1481238]
[1745520501708,0.5005,93538.0,93531.0,0.1481238]
[1745520503500,0.5005,93538.0,93532.0,0.1668]
[1745520505014,0.5005,93538.0,93531.0,0.01]
[1745520505713,0.5005,93538.0,93532.0,0.168]
[1745520506014,0.5005,93538.0,93533.0,0.1677]
[1745520506517,0.5005,93538.0,93534.0,0.163]
[1745520507514,0.3608,93535.0,93506.0,0.36186944]
[1745520507702,0.3608,93509.0,93496.0,0.3608]
[1745520507907,0.39016,93508.0,93498.0,0.0534598]
[1745520508106,0.07076,93507.0,93504.0,0.3608]
[1745520508302,0.07076,93507.0,93505.0,0.3199]
[1745520508521,0.1569,93508.0,93505.0,0.3199]
[1745520508712,0.07076,93507.0,93505.0,0.3199]
[1745520509416,0.10325049,93507.0,93505.0,0.3199]
[1745520510323,0.1664,93506.0,93505.0,0.1614]
[1745520510518,0.1664,93506.0,93498.0,0.1602]
[1745520510815,0.1635,93505.0,93498.0,0.3151]
[1745520511211,0.1664,93504.0,93498.0,0.3151]
[1745520511611,0.1635,93503.0,93498.0,0.3151]
[1745520512006,0.1664,93502.0,93498.0,0.3151]
[1745520512406,0.1635,93501.0,93487.0,0.3608]
[1745520512717,0.3608,93496.0,93488.0,0.1549]
[1745520513016,0.3289,93495.0,93478.0,0.1567]
[1745520513218,0.3608,93488.0,93481.0,0.3257]
[1745520513519,0.38646,93487.0,93481.0,0.3257]
[1745520513907,0.3157,93487.0,93472.0,0.3608]
[1745520514119,0.3608,93478.0,93476.0,1e-08]
[1745520514306,0.3608,93478.0,93458.0,0.1557]
[1745520514307,0.4811,93477.0,93459.0,0.1655]
[1745520514615,0.3608,93470.0,93459.0,0.3328]
[1745520514812,0.38646,93469.0,93459.0,0.3328]
[1745520515407,0.38646,93469.0,93459.0,0.3358]
[1745520516410,0.38646,93469.0,93459.0,0.3388]
[1745520516814,0.38646,93469.0,93459.0,0.3408]
[1745520517010,0.38746,93469.0,93459.0,0.3428]
[1745520518821,0.38746,93469.0,93462.0,0.3608]
[1745520518822,0.07176,93469.0,93462.0,0.3608]
[1745520519019,0.07176,93469.0,93462.0,0.4677604]
[1745520519219,0.0708,93468.0,93462.0,0.3608]
[1745520519427,0.001,93469.0,93468.0,0.1069542]
[1745520519722,0.0718,93469.0,93468.0,0.2139422]
[1745520519921,0.0718,93469.0,93468.0,0.4639422]
[1745520520126,0.0718,93469.0,93468.0,0.6359422]
[1745520520323,0.0718,93469.0,93468.0,0.9757422]
[1745520520513,0.0718,93469.0,93468.0,0.868788]
[1745520520716,0.0708,93470.0,93469.0,0.2139051]
[1745520521026,0.1575,93487.0,93482.0,0.1069378]
[1745520521222,0.0708,93486.0,93483.0,0.5072]
[1745520521422,0.1575,93487.0,93483.0,0.5072]
[1745520521623,0.1575,93485.0,93483.0,0.5072]
[1745520521822,0.0708,93484.0,93483.0,0.5072]
[1745520522030,0.2379,93484.0,93483.0,0.5072]
[1745520522928,0.1671,93484.0,93483.0,0.5072]
[1745520523115,0.2379,93484.0,93483.0,0.5072]
[1745520523316,0.2379,93484.0,93483.0,0.1721]
[1745520523619,0.2379,93484.0,93483.0,0.002]
[1745520524018,0.2379,93484.0,93483.0,0.003]
[1745520524325,0.2379,93484.0,93475.0,0.1665]
[1745520524515,0.3608,93480.0,93433.0,0.0534968]
[1745520524719,0.3608,93472.0,93464.0,0.3373]
[1745520524924,0.3364,93471.0,93464.0,0.3373]
[1745520525126,0.0708,93470.0,93464.0,0.3373]
[1745520525521,0.0708,93470.0,93461.0,0.1072421]
[1745520525522,0.3608,93467.0,93461.0,0.00028]
[1745520525721,0.3237,93466.0,93456.0,0.1608]
[1745520526326,0.4782,93466.0,93456.0,0.1608]
[1745520526528,0.4782,93466.0,93464.0,0.004]
[1745520527122,0.4782,93466.0,93456.0,0.1668]
[1745520527522,0.3608,93457.0,93447.0,0.0053506]
[1745520527723,0.3945,93456.0,93447.0,0.1661506]
[1745520528433,0.41877021,93456.0,93447.0,0.1661506]
[1745520529428,0.41977021,93456.0,93447.0,0.1691506]
[1745520529823,0.41977021,93456.0,93447.0,0.1721506]
[1745520531037,0.41977021,93456.0,93448.0,0.1701]
[1745520532528,0.41977021,93456.0,93448.0,0.1731]
[1745520532529,0.42774381,93456.0,93448.0,0.1731]
[1745520533034,0.42774381,93456.0,93448.0,0.006]
[1745520533232,0.3608,93449.0,93448.0,0.006]
[1745520534226,0.3608,93449.0,93448.0,0.008]
[1745520534625,0.43156,93449.0,93448.0,0.008]
[1745520535221,0.43156,93449.0,93448.0,0.3301]
[1745520535421,0.3608,93449.0,93448.0,0.3301]
[1745520535626,0.43156,93449.0,93448.0,0.3301]
[1745520536030,0.43256,93449.0,93448.0,0.163]
[1745520536225,0.43256,93449.0,93448.0,0.009]
[1745520542126,0.43256,93449.0,93447.0,0.00530354]
[1745520542326,0.4986,93448.0,93447.0,0.00530354]
[1745520543335,0.4986,93448.0,93447.0,0.01030354]
[1745520543637,0.4996,93448.0,93447.0,0.01530354]
[1745520544729,0.4996,93448.0,93447.0,0.01330354]
[1745520544933,0.4996,93448.0,93426.0,0.3608]
[1745520545140,0.16921827,93436.0,93426.0,0.3608]
[1745520545338,0.3889,93435.0,93427.0,0.1558]
[1745520545733,0.1661,93434.0,93427.0,0.1558]
[1745520546135,0.3181,93433.0,93426.0,0.3608]
[1745520546333,0.3181,93433.0,93426.0,0.3618]
[1745520546735,0.3181,93433.0,93426.0,0.3648]
[1745520546931,0.3181,93433.0,93427.0,0.001]
[1745520547136,0.3181,93433.0,93427.0,0.1582]
[1745520547333,0.0708,93432.0,93427.0,0.1572]
[1745520547839,0.1701,93431.0,93427.0,0.1572]
[1745520548139,0.1701,93431.0,93428.0,0.1651]
[1745520548540,0.1701,93431.0,93429.0,0.1572]
[1745520548937,0.1701,93431.0,93430.0,0.1651]
[1745520549642,0.1711,93431.0,93430.0,0.1651]
[1745520550939,0.1711,93431.0,93430.0,0.1671]
[1745520551836,0.2419,93431.0,93430.0,0.1671]
[1745520558954,0.1711,93431.0,93430.0,0.1671]
[1745520559146,0.2419,93431.0,93430.0,0.1671]
[1745520560445,0.2419,93431.0,93430.0,0.1537093]
[1745520565649,0.24186,93431.0,93430.0,0.1537093]
[1745520566146,0.24186,93431.0,93430.0,0.3100093]
[1745520567949,0.001,93431.0,93430.0,0.417007]
[1745520568149,0.00028,93438.0,93437.0,0.1069897]
[1745520568447,0.1608,93455.0,93448.0,0.106976]
[1745520568652,0.23476,93454.0,93449.0,0.3239]
[1745520569546,0.1608,93453.0,93449.0,0.3239]
[1745520569946,0.164,93452.0,93449.0,0.3239]
[1745520570246,0.164,93452.0,93449.0,0.3249]
[1745520570448,0.07076,93451.0,93449.0,0.3249]
[1745520570947,0.1699,93450.0,93449.0,0.3249]
[1745520571944,0.24066,93450.0,93449.0,0.3249]
[1745520572155,0.24366,93450.0,93449.0,0.3249]
[1745520572452,0.24366,93450.0,93449.0,0.3239]
[1745520573053,0.24666,93450.0,93449.0,0.3239]
[1745520573954,0.1759,93450.0,93449.0,0.3239]
[1745520574254,0.24666,93450.0,93449.0,0.3239]
[1745520575056,0.24666,93450.0,93449.0,0.4308759]
[1745520575250,0.24666,93450.0,93449.0,0.3239]
[1745520575850,0.24666,93450.0,93449.0,0.4308759]
[1745520576154,0.07676,93450.0,93449.0,0.4308759]
[1745520577847,0.006,93450.0,93449.0,0.4308759]
[1745520578052,0.07676,93450.0,93449.0,0.4308759]
[1745520578260,0.006,93450.0,93449.0,0.4308759]
[1745520578559,0.07676,93450.0,93449.0,0.4308759]
[1745520578855,0.006,93450.0,93449.0,0.4308759]
[1745520579750,0.07676,93450.0,93449.0,0.4308759]
[1745520580158,0.006,93450.0,93449.0,0.4308759]
[1745520580358,0.07076,93455.0,93452.0,0.053486]
[1745520580559,0.07076,93455.0,93454.0,0.4677702]
[1745520580760,0.07076,93457.0,93454.0,0.3608]
[1745520580958,0.1701,93456.0,93454.0,0.523]
[1745520581260,0.17821018,93456.0,93454.0,0.523]
[1745520581558,0.1587,93455.0,93454.0,0.523]
[1745520581863,0.1637,93455.0,93454.0,0.523]
[1745520582060,0.1557,93455.0,93454.0,0.523]
[1745520582961,0.3308,93455.0,93454.0,0.523]
[1745520584454,0.3288,93455.0,93454.0,0.523]
[1745520585359,0.39752,93455.0,93454.0,0.523]
[1745520587764,0.39852,93455.0,93454.0,0.523]
[1745520587959,0.39952,93455.0,93454.0,0.524]
[1745520589451,0.39952,93455.0,93454.0,0.51061308]
[1745520590055,0.39952,93455.0,93454.0,0.34841308]
[1745520590963,0.39752,93455.0,93454.0,0.34841308]
[1745520591157,0.39852,93455.0,93454.0,0.34841308]
[1745520591760,0.39752,93455.0,93454.0,0.34841308]
[1745520592063,0.40052,93455.0,93454.0,0.001]
[1745520592660,0.40152,93455.0,93454.0,0.001]
[1745520604373,0.40152,93455.0,93446.0,0.14731212]
[1745520605675,0.40052,93455.0,93446.0,0.14731212]
[1745520608068,0.40052,93455.0,93446.0,0.25429112]
[1745520608974,0.40052,93455.0,93446.0,0.25429152]